fUST/lending_fUST_20250831
["ID","MTS","AMOUNT","RATE_DAILY","PERIOD"]
[382464020,1756636245508,-518.21017361,0.0001803,2]
[382464021,1756636245517,-480.0,0.0001803,2]
[382464022,1756636245527,-480.0,0.0001803,2]
[382464023,1756636245536,-480.0,0.0001803,2]
[382464024,1756636245545,-480.0,0.0001803,2]
[382464025,1756636245555,-480.0,0.0001803,2]
[382464026,1756636245563,-480.0,0.0001803,2]
[382464027,1756636245571,-1696.18,0.0001803,2]
[382464028,1756636245579,-480.0,0.0001803,2]
[382464029,1756636245587,-1079.7,0.0001803,2]
[382464030,1756636245596,-480.0,0.0001803,2]
[382464031,1756636245605,-591.58,0.0001803,2]
[382464032,1756636245614,-504.7,0.0001803,2]
[382464033,1756636245623,-489.6535696,0.0001803,2]
[382464034,1756636245632,-184.400329,0.0001803,2]
[382464035,1756636245642,-480.0,0.0001803,2]
[382464036,1756636245652,-480.00000001,0.0001803,2]
[382464037,1756636245661,-151.0,0.0001803,2]
[382464038,1756636245670,-835.02,0.0001803,2]
[382464039,1756636245680,-480.0,0.0001803,2]
[382464040,1756636245689,-1317.7,0.0001803,2]
[382464041,1756636245699,-151.0,0.0001803,2]
[382464042,1756636245708,-484.64387556,0.0001803,2]
[382464043,1756636245718,-872.85,0.0001803,2]
[382464044,1756636245727,-480.0,0.0001803,2]
[382464045,1756636245737,-582.99,0.0001803,2]
[382464046,1756636245746,-618.42,0.0001803,2]
[382464047,1756636245755,-480.0,0.0001803,2]
[382464048,1756636245765,-480.0,0.0001803,2]
[382464049,1756636245774,-481.19532937,0.0001803,2]
[382464050,1756636245784,-151.0,0.0001803,2]
[382464051,1756636245793,-480.0,0.0001803,2]
[382464052,1756636245802,-225.188496,0.0001803,2]
[382464053,1756636245811,-605.84,0.0001803,2]
[382464054,1756636245821,-151.0,0.0001803,2]
[382464055,1756636245832,-151.0,0.0001803,2]
[382464056,1756636245842,-480.0,0.0001803,2]
[382464057,1756636245851,-481.01038569,0.0001803,2]
[382464058,1756636245859,-598.65,0.0001803,2]
[382464059,1756636245867,-480.0,0.0001803,2]
[382464060,1756636245875,-480.0,0.0001803,2]
[382464061,1756636245884,-902.36,0.0001803,2]
[382464062,1756636245893,-1284.0,0.0001803,2]
[382464063,1756636245901,-480.0,0.0001803,2]
[382464064,1756636245910,-480.0,0.0001803,2]
[382464065,1756636245920,-480.0,0.0001803,2]
[382464066,1756636245930,-991.42,0.0001803,2]
[382464067,1756636245939,-921.53,0.0001803,2]
[382464068,1756636245948,-480.0,0.0001803,2]
[382464069,1756636245957,-565.23,0.0001803,2]
[382464070,1756636245967,-705.65,0.0001803,2]
[382464071,1756636245976,-151.0,0.0001803,2]
[382464072,1756636245985,-568.55,0.0001803,2]
[382464073,1756636245995,-480.0,0.0001803,2]
[382464074,1756636246004,-603.54817478,0.0001803,2]
[382464075,1756636246013,-480.0,0.0001803,2]
[382464076,1756636246022,-480.0,0.0001803,2]
[382464077,1756636246031,-480.0,0.0001803,2]
[382464078,1756636246041,-995.45,0.0001803,2]
[382464079,1756636246050,-480.0,0.0001803,2]
[382464080,1756636246060,-906.01,0.0001803,2]
[382464081,1756636246069,-480.0,0.0001803,2]
[382464082,1756636246078,-620.5,0.0001803,2]
[382464083,1756636246087,-303.32377065,0.0001803,2]
[382464084,1756636246097,-1167.98,0.0001803,2]
[382464085,1756636246106,-1358.67,0.0001803,2]
[382464086,1756636246116,-480.0,0.0001803,2]
[382464087,1756636246125,-480.0,0.0001803,2]
[382464088,1756636246135,-480.0,0.0001803,2]
[382464089,1756636246144,-480.0,0.0001803,2]
[382464090,1756636246153,-480.0,0.0001803,2]
[382464091,1756636246162,-480.0,0.0001803,2]
[382464092,1756636246171,-642.22,0.0001803,2]
[382464093,1756636246181,-480.0,0.0001803,2]
[382464094,1756636246190,-480.0,0.0001803,2]
[382464095,1756636246200,-1359.56,0.0001803,2]
[382464096,1756636246209,-656.14,0.0001803,2]
[382464097,1756636246218,-574.82,0.0001803,2]
[382464098,1756636246228,-480.0,0.0001803,2]
[382464099,1756636246238,-428.70427262,0.0001803,2]
[382464100,1756636246247,-158.27277284,0.0001803,2]
[382464101,1756636246256,-480.0,0.0001803,2]
[382464102,1756636246265,-505.60382618,0.0001803,2]
[382464103,1756636246274,-501.15,0.0001803,2]
[382464104,1756636246284,-151.0,0.0001803,2]
[382464105,1756636246293,-487.95163791,0.0001803,2]
[382464106,1756636246303,-480.0,0.0001803,2]
[382464107,1756636246312,-480.0,0.0001803,2]
[382464108,1756636246321,-715.88,0.0001803,2]
[382464109,1756636246330,-151.0,0.0001803,2]
[382464110,1756636246339,-151.0,0.0001803,2]
[382464111,1756636246348,-151.0,0.0001803,2]
[382464112,1756636246358,-151.0,0.0001803,2]
[382464113,1756636246367,-151.0,0.0001803,2]
[382464114,1756636246377,-151.0,0.0001803,2]
[382464115,1756636246386,-151.0,0.0001803,2]
[382464116,1756636246395,-151.0,0.0001803,2]
[382464117,1756636246404,-185.876676,0.0001803,2]
[382464118,1756636246413,-185.876676,0.0001803,2]
[382464119,1756636246422,-185.876676,0.0001803,2]
[382464120,1756636246432,-185.876676,0.0001803,2]
[382464121,1756636246442,-229.118611,0.0001803,2]
[382464122,1756636246451,-229.118611,0.0001803,2]
[382464123,1756636246461,-229.118611,0.0001803,2]
[382464124,1756636246471,-652.143732,0.0001803,2]
[382464125,1756636246480,-229.118611,0.0001803,2]
[382464126,1756636246489,-652.143732,0.0001803,2]
[382464127,1756636246498,-151.0,0.0001803,2]
[382464128,1756636246507,-652.143732,0.0001803,2]
[382464129,1756636246517,-151.0,0.0001803,2]
[382464130,1756636246526,-652.143732,0.0001803,2]
[382464131,1756636246535,-500.0,0.00018031,2]
[382464132,1756636246544,-500.0,0.00018031,2]
[382464133,1756636246554,-500.0,0.00018031,2]
[382464134,1756636246563,-500.0,0.00018031,2]
[382464135,1756636246572,-500.0,0.00018031,2]
[382464136,1756636246581,-482.59720954,0.00018031,2]
[382464137,1756636246590,-628.21,0.00018031,2]
[382464138,1756636246599,-628.21,0.00018031,2]
[382464139,1756636246608,-628.21,0.00018031,2]
[382464140,1756636246618,-628.21,0.00018031,2]
[382464141,1756636246627,-628.21,0.00018031,2]
[382464142,1756636246636,-628.21,0.00018031,2]
[382464143,1756636246646,-628.21,0.00018031,2]
[382464144,1756636246655,-628.21,0.00018031,2]
[382464145,1756636246664,-628.21,0.00018031,2]
[382464146,1756636246675,-628.28109214,0.00018031,2]
[382464147,1756636246684,-151.0,0.00018032,2]
[382464148,1756636246693,-500.0,0.00018032,2]
[382464149,1756636246702,-151.61138015,0.00018032,2]
[382464150,1756636246712,-154.81963238,0.00018032,2]
[382464151,1756636246721,-151.0,0.00018032,2]
[382464152,1756636246731,-151.0,0.00018032,2]
[382464153,1756636246740,-201.51520989,0.00018032,2]
[382464154,1756636246751,-151.0,0.00018032,2]
[382464155,1756636246760,-151.00466912,0.00018032,2]
[382464156,1756636246770,-272.23210294,0.00018032,2]
[382464157,1756636246780,-151.0,0.00018032,2]
[382464158,1756636246789,-151.0,0.00018032,2]
[382464159,1756636246799,-155.65542487,0.00018042,2]
[382464160,1756636246808,-501.21878673,0.00018073,2]
[382464161,1756636246817,-500.0,0.00018073,2]
[382464162,1756636246827,-500.0,0.00018073,2]
[382464163,1756636246841,-500.0,0.00018073,2]
[382464164,1756636246851,-500.0,0.00018073,2]
[382464165,1756636246860,-500.0,0.00018073,2]
[382464166,1756636246869,-500.0,0.00018073,2]
[382464167,1756636246880,-500.0,0.00018073,2]
[382464168,1756636246890,-502.15147976,0.00018073,2]
[382464169,1756636246900,-500.0,0.00018073,2]
[382464170,1756636246911,-250.94392622,0.00018073,2]
[382464171,1756636246920,-500.0,0.00018073,2]
[382464172,1756636246930,-500.0,0.00018073,2]
[382464173,1756636246939,-500.0,0.00018073,2]
[382464174,1756636246949,-500.0,0.00018073,2]
[382464175,1756636246958,-500.0,0.00018073,2]
[382464176,1756636246968,-500.0,0.00018073,2]
[382464177,1756636246977,-500.0,0.00018073,2]
[382464178,1756636246986,-500.0,0.00018073,2]
[382464179,1756636246996,-500.0,0.00018073,2]
[382464180,1756636247005,-500.0,0.00018073,2]
[382464181,1756636247015,-500.0,0.00018073,2]
[382464182,1756636247024,-500.0,0.00018073,2]
[382464183,1756636247033,-500.0,0.00018073,2]
[382464184,1756636247042,-501.4016472,0.00018073,2]
[382464185,1756636247051,-500.0,0.00018073,2]
[382464186,1756636247061,-473.37987099,0.00018073,2]
[382464187,1756636247070,-501.94205107,0.00018073,2]
[382464188,1756636247079,-213.79428328,0.00018073,2]
[382464189,1756636247088,-500.0,0.00018073,2]
[382464190,1756636247098,-500.0,0.00018073,2]
[382464191,1756636247107,-500.0,0.00018073,2]
[382464192,1756636247116,-500.97484638,0.00018073,2]
[382464193,1756636247126,-500.0,0.00018073,2]
[382464194,1756636247135,-500.0,0.00018073,2]
[382464195,1756636247143,-500.0,0.00018073,2]
[382464196,1756636247152,-500.0,0.00018073,2]
[382464197,1756636247161,-500.0,0.00018073,2]
[382464198,1756636247171,-500.0,0.00018073,2]
[382464199,1756636247180,-500.0,0.00018073,2]
[382464200,1756636247189,-374.7049416,0.00018078,2]
[382464201,1756636247198,-341.9881509,0.00018082,2]
[382464202,1756636247208,-128663.6208661,0.00018085,2]
[382464203,1756636247217,-200.0,0.00018085,3]
[382464204,1756636247226,-200.0,0.00018085,3]
[382464205,1756636247235,-200.0,0.00018085,3]
[382464206,1756636247244,-200.0,0.00018085,3]
[382464207,1756636247253,-200.0,0.00018085,3]
[382464208,1756636247262,-151.0,0.00018085,2]
[382464209,1756636247271,-151.0,0.00018085,2]
[382464210,1756636247280,-151.0,0.00018085,2]
[382464211,1756636247290,-188.33928,0.00018085,2]
[382464212,1756636247299,-151.0,0.00018085,2]
[382464213,1756636247308,-151.0,0.00018085,2]
[382464214,1756636247317,-298.752792,0.00018085,2]
[382464215,1756636247327,-151.0,0.00018085,2]
[382464216,1756636247336,-151.0,0.00018085,2]
[382464217,1756636247345,-151.0,0.00018085,2]
[382464218,1756636247354,-151.0,0.00018085,2]
[382464219,1756636247364,-151.0,0.00018085,2]
[382464220,1756636247373,-151.0,0.00018085,2]
[382464221,1756636247382,-185.876676,0.00018085,2]
[382464222,1756636247391,-185.876676,0.00018085,2]
[382464223,1756636247400,-185.876676,0.00018085,2]
[382464224,1756636247409,-185.87667,0.00018085,2]
[382464225,1756636247418,-229.118611,0.00018085,2]
[382464226,1756636247427,-229.118611,0.00018085,2]
[382464227,1756636247436,-229.118611,0.00018085,2]
[382464228,1756636247445,-652.143732,0.00018085,2]
[382464229,1756636247455,-229.118602,0.00018085,2]
[382464230,1756636247464,-652.143732,0.00018085,2]
[382464231,1756636247472,-151.0,0.00018085,2]
[382464232,1756636247481,-652.143732,0.00018085,2]
[382464233,1756636247490,-284.048892,0.00018085,2]
[382464234,1756636247500,-652.143738,0.00018085,2]
[382464235,1756636247509,-151.0,0.000181,2]
[382464236,1756636247519,-151.0,0.000181,2]
[382464237,1756636247528,-151.0,0.000181,2]
[382464238,1756636247537,-1000.0,0.00018105,2]
[382464239,1756636247546,-500.0,0.00018105,2]
[382464240,1756636247555,-480.0,0.00018105,2]
[382464241,1756636247565,-480.0,0.00018105,2]
[382464242,1756636247574,-480.0,0.00018105,2]
[382464243,1756636247583,-483.00033591,0.00018105,2]
[382464244,1756636247592,-480.0,0.00018105,2]
[382464245,1756636247601,-480.0,0.00018105,2]
[382464246,1756636247610,-592.33,0.00018105,2]
[382464247,1756636247619,-480.95599647,0.00018105,2]
[382464248,1756636247627,-1099.69,0.00018105,2]
[382464249,1756636247638,-526.08976141,0.00018105,2]
[382464250,1756636247650,-497.59,0.00018105,2]
[382464251,1756636247660,-993.08,0.00018105,2]
[382464252,1756636247670,-480.0,0.00018105,2]
[382464253,1756636247680,-2958.25,0.00018105,2]
[382464254,1756636247691,-1394.93,0.00018105,2]
[382464255,1756636247700,-480.0,0.00018105,2]
[382464256,1756636247709,-1808.67,0.00018105,2]
[382464257,1756636247718,-480.0,0.00018105,2]
[382464258,1756636247727,-884.29,0.00018105,2]
[382464259,1756636247737,-1881.37,0.00018105,2]
[382464260,1756636247746,-1480.97,0.00018105,2]
[382464261,1756636247756,-549.71,0.00018105,2]
[382464262,1756636247765,-480.0,0.00018105,2]
[382464263,1756636247774,-883.64,0.00018105,2]
[382464264,1756636247785,-546.52,0.00018105,2]
[382464265,1756636247795,-500.0,0.00018105,2]
[382464266,1756636247804,-1072.5,0.00018105,2]
[382464267,1756636247813,-556.86,0.00018105,2]
[382464268,1756636247823,-1360.47,0.00018105,2]
[382464269,1756636247834,-480.0,0.00018105,2]
[382464270,1756636247843,-1672.77,0.00018105,2]
[382464271,1756636247852,-1370.88,0.00018105,2]
[382464272,1756636247862,-736.9,0.00018105,2]
[382464273,1756636247871,-1835.08,0.00018105,2]
[382464274,1756636247881,-485.67,0.00018105,2]
[382464275,1756636247889,-1153.81,0.00018105,2]
[382464276,1756636247899,-938.75,0.00018105,2]
[382464277,1756636247908,-480.0,0.00018105,2]
[382464278,1756636247918,-913.73,0.00018105,2]
[382464279,1756636247927,-480.0,0.00018105,2]
[382464280,1756636247937,-517.14,0.00018105,2]
[382464281,1756636247945,-551.05,0.00018105,2]
[382464282,1756636247955,-480.0,0.00018105,2]
[382464283,1756636247964,-1384.37,0.00018105,2]
[382464284,1756636247973,-480.0,0.00018105,2]
[382464285,1756636247982,-480.0,0.00018105,2]
[382464286,1756636247992,-5102.5,0.00018105,2]
[382464287,1756636248004,-480.0,0.00018105,2]
[382464288,1756636248017,-2136.9,0.00018105,2]
[382464289,1756636248027,-480.0,0.00018105,2]
[382464290,1756636248036,-766.82,0.00018105,2]
[382464291,1756636248047,-764.27,0.00018105,2]
[382464292,1756636248062,-1707.87,0.00018105,2]
[382464293,1756636248071,-1175.27,0.00018105,2]
[382464294,1756636248081,-480.0,0.00018105,2]
[382464295,1756636248090,-480.0,0.00018105,2]
[382464296,1756636248099,-480.0,0.00018105,2]
[382464297,1756636248108,-480.0,0.00018105,2]
[382464298,1756636248118,-2300.81,0.00018105,2]
[382464299,1756636248127,-480.0,0.00018105,2]
[382464300,1756636248136,-480.0,0.00018105,2]
[382464301,1756636248295,-1379.27,0.00018105,2]
[382464302,1756636248305,-1842.9,0.00018105,2]
[382464303,1756636248315,-2564.45,0.00018105,2]
[382464304,1756636248324,-500.0,0.00018105,2]
[382464305,1756636248334,-480.0,0.00018105,2]
[382464306,1756636248344,-1161.02,0.00018105,2]
[382464307,1756636248353,-1706.32,0.00018105,2]
[382464308,1756636248362,-761.15,0.00018105,2]
[382464309,1756636248372,-1654.41,0.00018105,2]
[382464310,1756636248381,-533.75,0.00018105,2]
[382464311,1756636248390,-480.0,0.00018105,2]
[382464312,1756636248399,-1737.13,0.00018105,2]
[382464313,1756636248409,-480.0,0.00018105,2]
[382464314,1756636248418,-2250.42,0.00018105,2]
[382464315,1756636248427,-526.05,0.00018105,2]
[382464316,1756636248437,-480.0,0.00018105,2]
[382464317,1756636248447,-579.92,0.00018105,2]
[382464318,1756636248456,-2946.04,0.00018105,2]
[382464319,1756636248466,-504.38854327,0.00018105,2]
[382464320,1756636248475,-480.0,0.00018105,2]
[382464321,1756636248484,-1819.29,0.00018105,2]
[382464322,1756636248493,-480.0,0.00018105,2]
[382464323,1756636248504,-1007.45,0.00018105,2]
[382464324,1756636248513,-935.01,0.00018105,2]
[382464325,1756636248524,-6791.65,0.00018105,2]
[382464326,1756636248533,-1003.65,0.00018105,2]
[382464327,1756636248543,-480.0,0.00018105,2]
[382464328,1756636248552,-844.59,0.00018105,2]
[382464329,1756636248562,-481.85753423,0.00018105,2]
[382464330,1756636248571,-543.35,0.00018105,2]
[382464331,1756636248580,-1752.61,0.00018105,2]
[382464332,1756636248590,-1248.57,0.00018105,2]
[382464333,1756636248599,-480.0,0.00018105,2]
[382464334,1756636248608,-480.0,0.00018105,2]
[382464335,1756636248618,-155.96891171,0.00018105,2]
[382464336,1756636248627,-674.87,0.00018105,2]
[382464337,1756636248638,-480.0,0.00018105,2]
[382464338,1756636248647,-1222.33,0.00018105,2]
[382464339,1756636248657,-844.52,0.00018105,2]
[382464340,1756636248666,-480.0,0.00018105,2]
[382464341,1756636248676,-480.0,0.00018105,2]
[382464342,1756636248686,-963.73,0.00018105,2]
[382464343,1756636248695,-1374.72,0.00018105,2]
[382464344,1756636248705,-480.0,0.00018105,2]
[382464345,1756636248715,-518.11,0.00018105,2]
[382464346,1756636248724,-925.96,0.00018105,2]
[382464347,1756636248733,-892.85,0.00018105,2]
[382464348,1756636248743,-1594.16,0.00018105,2]
[382464349,1756636248753,-436.19576782,0.00018105,2]
[382464350,1756636248762,-5479.45,0.00018105,2]
[382464351,1756636248772,-1041.77,0.00018105,2]
[382464352,1756636248782,-1940.32,0.00018105,2]
[382464353,1756636248792,-2410.23,0.00018105,2]
[382464354,1756636248801,-1794.98,0.00018105,2]
[382464355,1756636248810,-3544.54,0.00018105,2]
[382464356,1756636248820,-480.0,0.00018105,2]
[382464357,1756636248831,-480.0,0.00018105,2]
[382464358,1756636248844,-480.0,0.00018105,2]
[382464359,1756636248853,-778.0,0.00018105,2]
[382464360,1756636248862,-4127.71,0.00018105,2]
[382464361,1756636248871,-480.0,0.00018105,2]
[382464362,1756636248881,-1035.93,0.00018105,2]
[382464363,1756636248891,-1628.77,0.00018105,2]
[382464364,1756636248900,-583.68,0.00018105,2]
[382464365,1756636248910,-4548.03,0.00018105,2]
[382464366,1756636248920,-1395.91,0.00018105,2]
[382464367,1756636248931,-554.55,0.00018105,2]
[382464368,1756636248940,-480.0,0.00018105,2]
[382464369,1756636248949,-480.0,0.00018105,2]
[382464370,1756636248959,-1377.53,0.00018105,2]
[382464371,1756636248968,-480.0,0.00018105,2]
[382464372,1756636248977,-1550.12,0.00018105,2]
[382464373,1756636248987,-601.76,0.00018105,2]
[382464374,1756636248997,-480.0,0.00018105,2]
[382464375,1756636249007,-480.0,0.00018105,2]
[382464376,1756636249018,-1959.04,0.00018105,2]
[382464377,1756636249029,-480.0,0.00018105,2]
[382464378,1756636249039,-723.21,0.00018105,2]
[382464379,1756636249049,-1823.98,0.00018105,2]
[382464380,1756636249058,-646.85,0.00018105,2]
[382464381,1756636249068,-480.0,0.00018105,2]
[382464382,1756636249078,-480.0,0.00018105,2]
[382464383,1756636249087,-798.71,0.00018105,2]
[382464384,1756636249098,-480.0,0.00018105,2]
[382464385,1756636249107,-480.0,0.00018105,2]
[382464386,1756636249118,-570.35,0.00018105,2]
[382464387,1756636249127,-1795.03,0.00018105,2]
[382464388,1756636249136,-45894.0211721,0.00018178,2]
[382464389,1756636249145,-281.154866,0.00018178,2]
[382464390,1756636249155,-193.694951,0.00018178,2]
[382464391,1756636249164,-571.37089005,0.00018204,2]
[382464392,1756636249174,-198.0,0.00018204,2]
[382464393,1756636249183,-619.28300412,0.00018204,2]
[382464394,1756636249192,-500.0,0.00018204,2]
[382464395,1756636249201,-151.0,0.00018204,2]
[382464396,1756636249211,-1542.0,0.00018204,2]
[382464397,1756636249220,-500.0,0.00018204,2]
[382464398,1756636249229,-500.0,0.00018204,2]
[382464399,1756636249238,-500.0,0.00018204,2]
[382464400,1756636249247,-151.0,0.00018204,2]
[382464401,1756636249258,-500.0,0.00018204,2]
[382464402,1756636249267,-500.0,0.00018204,2]
[382464403,1756636249276,-151.0,0.00018204,2]
[382464404,1756636249286,-500.0,0.00018204,2]
[382464405,1756636249296,-480.0,0.00018204,2]
[382464406,1756636249305,-480.0,0.00018204,2]
[382464407,1756636249314,-175.10694815,0.00018204,2]
[382464408,1756636249324,-480.0,0.00018204,2]
[382464409,1756636249333,-573.16,0.00018204,2]
[382464410,1756636249343,-480.0,0.00018204,2]
[382464411,1756636249352,-480.0,0.00018204,2]
[382464412,1756636249362,-480.0,0.00018204,2]
[382464413,1756636249371,-538.33,0.00018204,2]
[382464414,1756636249381,-480.0,0.00018204,2]
[382464415,1756636249391,-480.0,0.00018204,2]
[382464416,1756636249400,-480.0,0.00018204,2]
[382464417,1756636249410,-480.0,0.00018204,2]
[382464418,1756636249419,-480.0,0.00018204,2]
[382464419,1756636249430,-480.0,0.00018204,2]
[382464420,1756636249439,-480.0,0.00018204,2]
[382464421,1756636249449,-480.0,0.00018204,2]
[382464422,1756636249458,-480.0,0.00018204,2]
[382464423,1756636249467,-481.90214128,0.00018204,2]
[382464424,1756636249476,-480.0,0.00018204,2]
[382464425,1756636249486,-829.26,0.00018204,2]
[382464426,1756636249496,-1194.25,0.00018204,2]
[382464427,1756636249506,-480.0,0.00018204,2]
[382464428,1756636249516,-518.63693586,0.00018204,2]
[382464429,1756636249526,-480.0,0.00018204,2]
[382464430,1756636249536,-480.0,0.00018204,2]
[382464431,1756636249545,-480.0,0.00018204,2]
[382464432,1756636249555,-871.94,0.00018204,2]
[382464433,1756636249565,-610.75,0.00018204,2]
[382464434,1756636249574,-480.0,0.00018204,2]
[382464435,1756636249583,-480.0,0.00018204,2]
[382464436,1756636249593,-480.0,0.00018204,2]
[382464437,1756636249603,-480.0,0.00018204,2]
[382464438,1756636249614,-482.35,0.00018204,2]
[382464439,1756636249625,-1260.41,0.00018204,2]
[382464440,1756636249636,-480.0,0.00018204,2]
[382464441,1756636249646,-480.0,0.00018204,2]
[382464442,1756636249656,-548.83,0.00018204,2]
[382464443,1756636249666,-480.0,0.00018204,2]
[382464444,1756636249677,-480.0,0.00018204,2]
[382464445,1756636249687,-997.06,0.00018204,2]
[382464446,1756636249696,-437.20846435,0.00018204,2]
[382464447,1756636249705,-1032.15,0.00018204,2]
[382464448,1756636249714,-500.0,0.00018204,2]
[382464449,1756636249723,-943.84,0.00018204,2]
[382464450,1756636249733,-281.17857586,0.00018204,2]
[382464451,1756636249742,-826.34,0.00018204,2]
[382464452,1756636249751,-480.0,0.00018204,2]
[382464453,1756636249760,-551.65,0.00018204,2]
[382464454,1756636249770,-1288.32,0.00018204,2]
[382464455,1756636249780,-236.93270534,0.00018204,2]
[382464456,1756636249790,-480.0,0.00018204,2]
[382464457,1756636249799,-480.0,0.00018204,2]
[382464458,1756636249808,-455.76588376,0.00018204,2]
[382464459,1756636249818,-480.0,0.00018204,2]
[382464460,1756636249827,-480.0,0.00018204,2]
[382464461,1756636249840,-480.0,0.00018204,2]
[382464462,1756636249849,-592.57,0.00018204,2]
[382464463,1756636249858,-278.00664309,0.00018204,2]
[382464464,1756636249867,-480.0,0.00018204,2]
[382464465,1756636249877,-480.0,0.00018204,2]
[382464466,1756636249886,-480.0,0.00018204,2]
[382464467,1756636249896,-481.92102351,0.00018204,2]
[382464468,1756636249905,-480.0,0.00018204,2]
[382464469,1756636249914,-480.0,0.00018204,2]
[382464470,1756636249923,-1282.96,0.00018204,2]
[382464471,1756636249933,-480.0,0.00018204,2]
[382464472,1756636249942,-480.0,0.00018204,2]
[382464473,1756636249952,-480.0,0.00018204,2]
[382464474,1756636249961,-480.0,0.00018204,2]
[382464475,1756636249971,-480.0,0.00018204,2]
[382464476,1756636249980,-480.0,0.00018204,2]
[382464477,1756636249990,-480.0,0.00018204,2]
[382464478,1756636250000,-480.0,0.00018204,2]
[382464479,1756636250010,-480.0,0.00018204,2]
[382464480,1756636250019,-298.80298951,0.00018204,2]
[382464481,1756636250029,-480.0,0.00018204,2]
[382464482,1756636250038,-480.0,0.00018204,2]
[382464483,1756636250048,-495.7,0.00018204,2]
[382464484,1756636250057,-151.0,0.00018204,2]
[382464485,1756636250066,-480.0,0.00018204,2]
[382464486,1756636250076,-480.0,0.00018204,2]
[382464487,1756636250088,-480.0,0.00018204,2]
[382464488,1756636250097,-576.54,0.00018204,2]
[382464489,1756636250106,-665.04,0.00018204,2]
[382464490,1756636250115,-506.66,0.00018204,2]
[382464491,1756636250124,-480.0,0.00018204,2]
[382464492,1756636250134,-247.99788616,0.00018204,2]
[382464493,1756636250143,-480.0,0.00018204,2]
[382464494,1756636250152,-480.0,0.00018204,2]
[382464495,1756636250162,-566.36,0.00018204,2]
[382464496,1756636250171,-719.21,0.00018204,2]
[382464497,1756636250181,-480.0,0.00018204,2]
[382464498,1756636250190,-480.0,0.00018204,2]
[382464499,1756636250199,-480.0,0.00018204,2]
[382464500,1756636250209,-729.36,0.00018204,2]
[382464501,1756636250218,-480.0,0.00018204,2]
[382464502,1756636250227,-480.0,0.00018204,2]
[382464503,1756636250237,-480.0,0.00018204,2]
[382464504,1756636250246,-480.0,0.00018204,2]
[382464505,1756636250256,-480.0,0.00018204,2]
[382464506,1756636250265,-480.0,0.00018204,2]
[382464507,1756636250275,-1782.93,0.00018204,2]
[382464508,1756636250286,-768.31,0.00018204,2]
[382464509,1756636250295,-480.0,0.00018204,2]
[382464510,1756636250304,-480.0,0.00018204,2]
[382464511,1756636250313,-480.0,0.00018204,2]
[382464512,1756636250323,-599.79,0.00018204,2]
[382464513,1756636250333,-485.31157402,0.00018204,2]
[382464514,1756636250343,-480.0,0.00018204,2]
[382464515,1756636250352,-738.36,0.00018204,2]
[382464516,1756636250361,-480.0,0.00018204,2]
[382464517,1756636250370,-512.56,0.00018204,2]
[382464518,1756636250380,-480.0,0.00018204,2]
[382464519,1756636250389,-480.0,0.00018204,2]